fUSD/lending_fUSD_20250611
["ID","MTS","AMOUNT","RATE_DAILY","PERIOD"]
[365461496,1749682256328,-500.0,0.0001967,2]
[365461497,1749682256338,-3554.43,0.0001967,2]
[365461498,1749682256347,-500.0,0.0001967,2]
[365461499,1749682256356,-339.49842201,0.00019671,2]
[365461500,1749682256366,-490.0,0.00019671,2]
[365461501,1749682256377,-450.0,0.00019671,2]
[365461502,1749682256387,-490.0,0.00019671,2]
[365461503,1749682256397,-450.0,0.00019671,2]
[365461504,1749682256408,-335.144635,0.00019671,2]
[365461505,1749682256417,-450.0,0.00019671,2]
[365461506,1749682256427,-450.0,0.00019671,2]
[365461507,1749682256436,-490.0,0.00019671,2]
[365461508,1749682256445,-450.0,0.00019671,2]
[365461509,1749682256455,-450.0,0.00019671,2]
[365461510,1749682256464,-490.0,0.00019671,2]
[365461511,1749682256474,-751.8,0.00019671,2]
[365461512,1749682256484,-450.0,0.00019671,2]
[365461513,1749682256493,-450.0,0.00019671,2]
[365461514,1749682256503,-490.0,0.00019671,2]
[365461515,1749682256512,-450.0,0.00019671,2]
[365461516,1749682256521,-490.0,0.00019671,2]
[365461517,1749682256532,-490.0,0.00019671,2]
[365461518,1749682256541,-827.84,0.00019671,2]
[365461519,1749682256551,-490.0,0.00019671,2]
[365461520,1749682256560,-490.0,0.00019671,2]
[365461521,1749682256570,-490.0,0.00019671,2]
[365461522,1749682256579,-504.27,0.00019671,2]
[365461523,1749682256589,-490.0,0.00019671,2]
[365461524,1749682256598,-490.0,0.00019671,2]
[365461525,1749682256608,-507.63,0.00019671,2]
[365461526,1749682256617,-490.0,0.00019671,2]
[365461527,1749682256628,-962.49,0.00019671,2]
[365461528,1749682256638,-490.0,0.00019671,2]
[365461529,1749682256647,-490.0,0.00019671,2]
[365461530,1749682256656,-490.0,0.00019671,2]
[365461531,1749682256666,-490.0,0.00019671,2]
[365461532,1749682256675,-490.0,0.00019671,2]
[365461533,1749682256685,-490.0,0.00019671,2]
[365461534,1749682256694,-490.0,0.00019671,2]
[365461535,1749682256704,-490.0,0.00019671,2]
[365461536,1749682256713,-234.28,0.00019671,2]
[365461537,1749682256723,-596.08,0.00019671,2]
[365461538,1749682256733,-490.0,0.00019671,2]
[365461539,1749682256743,-490.0,0.00019671,2]
[365461540,1749682256752,-490.0,0.00019671,2]
[365461541,1749682256762,-490.0,0.00019671,2]
[365461542,1749682256771,-490.0,0.00019671,2]
[365461543,1749682256780,-639.53,0.00019671,2]
[365461544,1749682256790,-490.0,0.00019671,2]
[365461545,1749682256799,-739.95,0.00019671,2]
[365461546,1749682256813,-490.0,0.00019671,2]
[365461547,1749682256823,-490.0,0.00019671,2]
[365461548,1749682256832,-673.4,0.00019671,2]
[365461549,1749682256842,-684.3,0.00019671,2]
[365461550,1749682256853,-490.0,0.00019671,2]
[365461551,1749682256862,-385.70102416,0.00019671,2]
[365461552,1749682256872,-490.0,0.00019671,2]
[365461553,1749682256884,-490.0,0.00019671,2]
[365461554,1749682256894,-707.38,0.00019671,2]
[365461555,1749682256903,-490.0,0.00019671,2]
[365461556,1749682256913,-470.0,0.00019671,2]
[365461557,1749682256923,-490.0,0.00019671,2]
[365461558,1749682256932,-530.03,0.00019671,2]
[365461559,1749682256941,-490.0,0.00019671,2]
[365461560,1749682256951,-171.65256559,0.00019671,2]
[365461561,1749682256961,-490.0,0.00019671,2]
[365461562,1749682256971,-795.97,0.00019671,2]
[365461563,1749682256980,-490.0,0.00019671,2]
[365461564,1749682256990,-376.00347611,0.00019671,2]
[365461565,1749682257020,-113.99652389,0.00019671,2]
[365461566,1749682257029,-159.05014799,0.00019671,2]
[365461567,1749682257076,-341.95610781,0.00019178,2]
[365461568,1749682257790,-138.04389219,0.00019178,2]
[365461569,1749682257799,-323.47304908,0.00019178,2]
[365461570,1749682257819,-166.52695092,0.00019178,2]
[365461571,1749682257828,-490.0,0.00019178,2]
[365461572,1749682257836,-42.84239074,0.00019178,2]
[365461573,1749682257853,-437.15760926,0.00019178,2]
[365461574,1749682257862,-15.16426081,0.00019178,2]
[365461575,1749682257876,-474.83573919,0.00019178,2]
[365461576,1749682257888,-156.16426081,0.00019178,2]
[365461579,1749682362201,336.37479448,0.00016384,2]
[365461580,1749682362365,500.0,0.00016384,2]
[365461581,1749682365650,910.0,0.0002465,120]
[365461582,1749682409374,152.0,0.0001691,3]
[365461583,1749682409552,1287.9,0.00016633,2]
[365461584,1749682512024,209.0,0.00017133,2]
[365461585,1749682578830,500.0,0.00016384,2]
[365461586,1749682600165,1470.0,0.00024658,120]
[365461587,1749682621731,539.99,0.00024658,120]
[365461588,1749682646567,490.0,0.00024658,120]
[365461589,1749682734444,893.13,0.00017983,2]
[365461590,1749682752847,200.0,0.00017983,2]
[365461591,1749682786496,1765.92,0.00017983,2]
[365461592,1749682817983,979.0,0.00017934,2]
[365461593,1749682932240,202.0,0.00017899,2]
[365461594,1749682986561,192.86270954,0.00017933,2]
[365461595,1749683081517,201.0,0.00017899,2]
[365461597,1749683119173,22.82127828,0.00013699,2]
[365461598,1749683119198,367.05872172,0.00013699,2]
[365461599,1749683248138,-661.34,0.00018002,2]
[365461600,1749683248159,-200.0,0.00018003,2]
[365461601,1749683248179,-169.99,0.00018003,2]
[365461602,1749683248201,-309.99513031,0.00018023,2]
[365461603,1749683250247,-210.58486969,0.00018023,2]
[365461604,1749683250270,-666.0,0.00018025,2]
[365461605,1749683250291,-414.36,0.00018033,2]
[365461606,1749683250314,-36.14584242,0.00018033,2]
[365461607,1749683285626,192.86270954,0.00017933,2]
[365461608,1749683292739,202.0,0.00017856,2]
[365461609,1749683366931,23900.0,0.00017949,2]
[365461610,1749683381767,200.0,0.00017856,2]
[365461611,1749683383807,150.0,0.00017947,7]
[365461612,1749683393005,500.0,0.00024658,120]
[365461613,1749683395021,1551.54,0.00016041,2]
[365461635,1749683431549,-762.63,0.00018008,2]
[365461636,1749683431559,-500.0,0.00018012,2]
[365461637,1749683431569,-300.0,0.00018024,2]
[365461638,1749683431578,-1200.0,0.00018024,2]
[365461639,1749683431588,-3498.38289306,0.00018025,2]
[365461640,1749683431599,-819.33484271,0.00018025,2]
[365461641,1749683431613,-6256.59441001,0.00018025,2]
[365461642,1749683431624,-951.0,0.00018025,2]
[365461643,1749683431643,-30793.57440183,0.00018025,2]
[365461644,1749683431655,-1160.98518536,0.00018025,2]
[365461645,1749683431666,-791.49937177,0.00018025,2]
[365461646,1749683431677,-856.5879686,0.00018025,2]
[365461647,1749683431689,-3372.60976168,0.00018025,2]
[365461648,1749683431705,-26190.62747399,0.00018025,2]
[365461649,1749683431716,-302.0,0.00018025,2]
[365461650,1749683431727,-675.41003666,0.00018025,2]
[365461651,1749683431738,-2269.33792627,0.00018025,2]
[365461652,1749683431751,-2055.24350587,0.00018025,2]
[365461653,1749683431762,-793.02525865,0.00018025,2]
[365461654,1749683431833,-3333.079664,0.00018025,2]
[365461655,1749683431845,-1148.7267556,0.00018025,2]
[365461656,1749683431856,-1254.98903124,0.00018025,2]
[365461658,1749683431897,-350.0,0.00018025,2]
[365461659,1749683431908,-748.44104968,0.00018025,2]
[365461660,1749683431919,-586.09018404,0.00018025,2]
[365461661,1749683431932,-6671.21539224,0.00018025,2]
[365461662,1749683431971,-653.19761523,0.00018025,2]
[365461663,1749683431994,-2157.49345471,0.00018025,2]
[365461664,1749683432003,-1732.96582595,0.00018025,2]
[365461665,1749683432014,-2595.75038882,0.00018025,2]
[365461666,1749683432029,-9389.05297723,0.00018025,2]
[365461667,1749683432038,-300.0,0.00018033,2]
[365461668,1749683432047,-250.0,0.00018033,2]
[365461669,1749683432056,-874.96,0.00018034,2]
[365461670,1749683432065,-2625.73,0.00018034,2]
[365461671,1749683432074,-250.0,0.00018034,2]
[365461672,1749683432083,-2627.08,0.00018034,2]
[365461673,1749683432093,-201.0,0.00018037,2]
[365461674,1749683432104,-500.0,0.00018045,2]
[365461675,1749683432115,-167.03,0.00018051,2]
[365461676,1749683432124,-150.0,0.00018091,2]
[365461677,1749683432133,-6417.21,0.00018118,2]
[365461678,1749683432143,-1551.54,0.00018304,2]
[365461679,1749683432152,-304.5,0.00018305,2]
[365461680,1749683432162,-301.45,0.00018305,2]
[365461682,1749683432171,-152.97,0.00018351,2]
[365461684,1749683432180,-302.05,0.00018351,2]
[365461685,1749683432189,-305.2,0.00018351,2]
[365461686,1749683432198,-303.84,0.00018351,2]
[365461687,1749683432207,-301.69,0.00018351,2]
[365461688,1749683432216,-305.6,0.00018351,2]
[365461689,1749683432225,-303.87,0.00018351,2]
[365461690,1749683432234,-495.63,0.00018351,2]
[365461691,1749683432244,-509.27,0.00018351,2]
[365461692,1749683432253,-300.67,0.00018351,2]
[365461693,1749683432262,-300.35,0.00018351,2]
[365461694,1749683432271,-305.07,0.00018351,2]
[365461695,1749683432280,-150.03,0.00018351,2]
[365461696,1749683432289,-264.87,0.00018356,2]
[365461697,1749683432298,-221.84180069,0.00018765,2]
[365461698,1749683432307,-202.0,0.00018836,3]
[365461699,1749683432316,-369.40830574,0.000189,2]
[365461700,1749683432325,-585.50589023,0.00018901,2]
[365461701,1749683432336,-585.50589009,0.00018928,2]
[365461702,1749683432345,-369.40830561,0.00018934,2]
[365461703,1749683432356,-1957.856,0.00018937,2]
[365461704,1749683432365,-207.4,0.00018937,2]
[365461705,1749683432374,-585.50589009,0.00018954,2]
[365461706,1749683432383,-369.40830561,0.00018969,2]
[365461707,1749683432392,-585.50589009,0.00018981,2]
[365461708,1749683432401,-2030.296672,0.00018992,2]
[365461710,1749683432411,-250.0,0.00019,2]
[365461712,1749683432419,-13725.32,0.00019,5]
[365461714,1749683432429,-152.21678659,0.00019001,2]
[365461716,1749683432438,-151.0,0.00019001,2]
[365461717,1749683432447,-868.96893295,0.00019001,2]
[365461719,1749683432456,-500.0,0.00019001,2]
[365461720,1749683432464,-500.0,0.00019001,2]
[365461721,1749683432474,-500.0,0.00019001,2]
[365461722,1749683432483,-500.0,0.00019001,2]
[365461723,1749683432491,-500.0,0.00019001,2]
[365461724,1749683432500,-500.0,0.00019001,2]
[365461725,1749683432509,-500.0,0.00019001,2]
[365461726,1749683432518,-151.0,0.00019001,2]
[365461727,1749683432527,-166.14,0.00019002,2]
[365461728,1749683432536,-369.40830561,0.00019003,2]
[365461729,1749683432545,-585.50589009,0.00019007,2]
[365461730,1749683432554,-434.01053721,0.00019011,2]
[365461731,1749683432562,-196.45147108,0.00019011,2]
[365461732,1749683432571,-40948.31495206,0.00019012,2]
[365461733,1749683432580,-585.50589009,0.00019034,2]
[365461734,1749683432589,-369.40830561,0.00019038,2]
[365461735,1749683432599,-2710.39238021,0.00019042,2]
[365461736,1749683432611,-2105.41764886,0.00019047,2]
[365461737,1749683432621,-585.50589009,0.0001906,2]
[365461738,1749683432631,-369.40830561,0.00019072,2]
[365461739,1749683432640,-166.36500592,0.00019078,2]
[365461740,1749683432649,-686.53644722,0.00019078,2]
[365461741,1749683432660,-171.74199984,0.00019078,2]
[365461742,1749683432670,-795.5348,0.00019078,2]
[365461743,1749683432679,-2157.49,0.00019078,2]
[365461744,1749683432692,-711.1444,0.00019078,2]
[365461745,1749683432703,-585.50589009,0.00019087,2]
[365461746,1749683432714,-2183.31810187,0.00019102,2]
[365461747,1749683432725,-369.40830561,0.00019107,2]
[365461748,1749683432734,-585.50589009,0.00019114,2]
[365461749,1749683432743,-500.0,0.00019124,2]
[365461750,1749683432752,-585.50589009,0.0001914,2]
[365461751,1749683432761,-369.40830561,0.00019141,2]
[365461752,1749683432771,-2264.10087164,0.00019157,2]
[365461753,1749683432780,-686.53644718,0.00019158,2]
[365461754,1749683432789,-585.50589009,0.00019167,2]
[365461755,1749683432798,-528.66,0.00019168,2]
[365461756,1749683432808,-500.0,0.00019173,2]
[365461757,1749683432817,-500.0,0.00019173,2]
[365461758,1749683432827,-500.0,0.00019173,2]
[365461759,1749683432837,-500.0,0.00019173,2]
[365461760,1749683432846,-500.0,0.00019173,2]
[365461761,1749683432856,-500.0,0.00019173,2]
[365461762,1749683432865,-500.0,0.00019173,2]
[365461763,1749683432874,-168.0,0.00019173,2]
[365461764,1749683432883,-369.40830561,0.00019176,2]
[365461765,1749683432892,-165.346485,0.00019178,2]
[365461766,1749683432901,-382.72170958,0.00019178,2]
[365461767,1749683432910,-931.112521,0.00019178,2]
[365461768,1749683432919,-158.026597,0.00019178,2]
[365461769,1749683432928,-197.8231534,0.00019178,2]
[365461770,1749683432938,-423.21640408,0.00019178,2]
[365461771,1749683432947,-480.0,0.00019178,2]
[365461772,1749683432956,-844.706846,0.00019178,2]
[365461773,1749683432966,-599.50005957,0.00019178,2]
[365461774,1749683432975,-480.0,0.00019178,2]
[365461775,1749683432985,-362.64448111,0.00019178,2]
[365461776,1749683432994,-490.0,0.00019178,2]
[365461777,1749683433003,-411.24922126,0.00019178,2]
[365461778,1749683433012,-480.0,0.00019178,2]
[365461779,1749683433022,-361.91129091,0.00019178,2]
[365461780,1749683433031,-635.7,0.00019178,2]
[365461781,1749683433041,-366.02200978,0.00019178,2]
[365461782,1749683433051,-480.0,0.00019178,2]
[365461783,1749683433060,-480.0,0.00019178,2]
[365461784,1749683433069,-480.0,0.00019178,2]
[365461785,1749683433079,-480.0,0.00019178,2]
[365461786,1749683433088,-159.285186,0.00019178,2]
[365461787,1749683433098,-490.0,0.00019178,2]
[365461788,1749683433107,-480.0,0.00019178,2]
[365461789,1749683433116,-480.0,0.00019178,2]
[365461790,1749683433125,-480.0,0.00019178,2]
[365461791,1749683433135,-480.0,0.00019178,2]
[365461792,1749683433144,-329.92133835,0.00019178,2]
[365461793,1749683433153,-480.0,0.00019178,2]
[365461794,1749683433163,-480.0,0.00019178,2]
[365461795,1749683433172,-480.0,0.00019178,2]
[365461796,1749683433182,-490.0,0.00019178,2]
[365461797,1749683433191,-480.0,0.00019178,2]
[365461798,1749683433200,-490.0,0.00019178,2]
[365461799,1749683433209,-480.0,0.00019178,2]
[365461800,1749683433218,-480.0,0.00019178,2]
[365461801,1749683433227,-490.0,0.00019178,2]
[365461802,1749683433236,-480.0,0.00019178,2]
[365461803,1749683433246,-161.79,0.00019178,2]
[365461804,1749683433256,-480.0,0.00019178,2]
[365461805,1749683433265,-480.0,0.00019178,2]
[365461806,1749683433274,-480.0,0.00019178,2]
[365461807,1749683433283,-480.0,0.00019178,2]
[365461808,1749683433292,-480.0,0.00019178,2]
[365461809,1749683433301,-480.0,0.00019178,2]
[365461810,1749683433310,-490.0,0.00019178,2]
[365461811,1749683433319,-480.0,0.00019178,2]
[365461812,1749683433329,-480.0,0.00019178,2]
[365461813,1749683433338,-300.0,0.00019178,2]
[365461814,1749683433347,-480.0,0.00019178,2]
[365461815,1749683433358,-490.0,0.00019178,2]
[365461816,1749683433367,-480.0,0.00019178,2]
[365461817,1749683433376,-480.0,0.00019178,2]
[365461818,1749683433386,-480.0,0.00019178,2]
[365461819,1749683433395,-490.0,0.00019178,2]
[365461820,1749683433405,-490.0,0.00019178,2]
[365461821,1749683433414,-490.0,0.00019178,2]
[365461822,1749683433423,-490.0,0.00019178,2]
[365461823,1749683433432,-490.0,0.00019178,2]
[365461824,1749683433444,-480.0,0.00019178,2]
[365461825,1749683433455,-480.0,0.00019178,2]
[365461826,1749683433467,-480.0,0.00019178,2]
[365461827,1749683433477,-157.69761916,0.00019178,2]
[365461828,1749683433486,-480.0,0.00019178,2]
[365461829,1749683433495,-480.0,0.00019178,2]
[365461830,1749683433505,-480.0,0.00019178,2]
[365461831,1749683433514,-490.0,0.00019178,2]
[365461832,1749683433524,-490.0,0.00019178,2]
[365461833,1749683433533,-480.0,0.00019178,2]
[365461834,1749683433542,-480.0,0.00019178,2]
[365461835,1749683433552,-490.0,0.00019178,2]
[365461836,1749683433562,-490.0,0.00019178,2]
[365461837,1749683433572,-490.0,0.00019178,2]
[365461838,1749683433583,-480.0,0.00019178,2]
[365461839,1749683433593,-480.0,0.00019178,2]
[365461840,1749683433603,-173.19641658,0.00019178,2]
[365461841,1749683433617,-490.0,0.00019178,2]
[365461842,1749683433626,-481.26736506,0.00019178,2]
[365461843,1749683433636,-490.0,0.00019178,2]
[365461844,1749683433646,-480.0,0.00019178,2]
[365461845,1749683433657,-480.0,0.00019178,2]
[365461846,1749683433667,-480.0,0.00019178,2]
[365461847,1749683433677,-661.20962,0.00019178,2]
[365461848,1749683433689,-490.0,0.00019178,2]
[365461849,1749683433699,-490.0,0.00019178,2]
[365461850,1749683433708,-480.0,0.00019178,2]
[365461851,1749683433717,-480.0,0.00019178,2]
[365461852,1749683433727,-480.0,0.00019178,2]
[365461853,1749683433736,-490.0,0.00019178,2]
[365461854,1749683433746,-480.0,0.00019178,2]
[365461855,1749683433756,-480.0,0.00019178,2]
[365461856,1749683434008,-480.0,0.00019178,2]
[365461857,1749683434018,-490.0,0.00019178,2]
[365461858,1749683434027,-490.0,0.00019178,2]
[365461859,1749683434037,-480.0,0.00019178,2]
[365461860,1749683434046,-480.0,0.00019178,2]
[365461861,1749683434055,-490.0,0.00019178,2]
[365461862,1749683434065,-480.0,0.00019178,2]
[365461863,1749683434074,-480.0,0.00019178,2]
[365461864,1749683434083,-480.0,0.00019178,2]
[365461865,1749683434092,-480.0,0.00019178,2]
[365461866,1749683434102,-480.0,0.00019178,2]
[365461867,1749683434111,-480.0,0.00019178,2]
[365461868,1749683434121,-490.0,0.00019178,2]
[365461869,1749683434131,-480.0,0.00019178,2]
[365461870,1749683434142,-490.0,0.00019178,2]
[365461871,1749683434155,-480.0,0.00019178,2]
[365461872,1749683434165,-480.0,0.00019178,2]
[365461873,1749683434174,-480.0,0.00019178,2]
[365461874,1749683434183,-490.0,0.00019178,2]
[365461875,1749683434193,-490.0,0.00019178,2]
[365461876,1749683434202,-480.0,0.00019178,2]
[365461877,1749683434211,-773.21,0.00019178,2]
[365461878,1749683434221,-480.0,0.00019178,2]
[365461879,1749683434230,-480.0,0.00019178,2]
[365461880,1749683434240,-490.0,0.00019178,2]
[365461881,1749683434249,-630.17139962,0.00019178,2]
[365461882,1749683434259,-480.0,0.00019178,2]
[365461883,1749683434268,-5041.83485008,0.00019178,2]
[365461884,1749683434278,-480.0,0.00019178,2]
[365461885,1749683434287,-490.0,0.00019178,2]
[365461886,1749683434296,-480.0,0.00019178,2]
[365461887,1749683434306,-490.0,0.00019178,2]
[365461888,1749683434315,-480.0,0.00019178,2]
[365461889,1749683434324,-369.77060418,0.00019178,2]
[365461890,1749683434333,-480.0,0.00019178,2]
[365461891,1749683434342,-423.81531636,0.00019178,2]
[365461892,1749683434352,-480.0,0.00019178,2]
[365461893,1749683434362,-490.0,0.00019178,2]
[365461894,1749683434371,-119.44680895,0.00019178,2]
[365461895,1749683434396,-360.55319105,0.00019178,2]
[365461896,1749683434405,-480.0,0.00019178,2]
[365461897,1749683434415,-380.0,0.00019178,2]
[365461898,1749683434425,-269.26182234,0.00019178,2]
[365461899,1749683434434,-480.0,0.00019178,2]
[365461900,1749683434442,-480.0,0.00019178,2]
[365461901,1749683434452,-637.39,0.00019178,2]
[365461902,1749683434461,-490.0,0.00019178,2]
[365461903,1749683434470,-453.12017472,0.00019178,2]
[365461904,1749683434479,-480.0,0.00019178,2]
[365461905,1749683434489,-480.0,0.00019178,2]
[365461906,1749683434498,-490.0,0.00019178,2]
[365461907,1749683434507,-490.0,0.00019178,2]
[365461908,1749683434516,-490.0,0.00019178,2]
[365461909,1749683434526,-303.62003869,0.00019178,2]
[365461910,1749683434535,-480.0,0.00019178,2]
[365461911,1749683434544,-480.0,0.00019178,2]
[365461912,1749683434553,-424.8287532,0.00019178,2]
[365461913,1749683434563,-490.0,0.00019178,2]
[365461914,1749683434572,-480.0,0.00019178,2]
[365461915,1749683434582,-480.0,0.00019178,2]
[365461916,1749683434591,-360.0,0.00019178,2]
[365461917,1749683434601,-420.0,0.00019178,2]
[365461918,1749683434615,-177.62376173,0.00019178,2]
[365461919,1749683434624,-490.0,0.00019178,2]
[365461920,1749683434634,-480.0,0.00019178,2]
[365461921,1749683434643,-490.0,0.00019178,2]
[365461922,1749683434654,-490.0,0.00019178,2]
[365461923,1749683434663,-490.0,0.00019178,2]
[365461924,1749683434672,-480.0,0.00019178,2]
[365461925,1749683434682,-490.0,0.00019178,2]
[365461926,1749683434693,-280.0,0.00019178,2]
[365461927,1749683434703,-490.0,0.00019178,2]
[365461928,1749683434712,-290.33988551,0.00019178,2]
[365461929,1749683434722,-490.0,0.00019178,2]
[365461930,1749683434731,-490.0,0.00019178,2]
[365461931,1749683434740,-975.2,0.00019178,2]
[365461932,1749683434749,-490.0,0.00019178,2]
[365461933,1749683434758,-490.0,0.00019178,2]
[365461934,1749683434767,-480.0,0.00019178,2]
[365461935,1749683434777,-490.0,0.00019178,2]
[365461936,1749683434786,-477.51266609,0.00019178,2]
[365461937,1749683434796,-490.0,0.00019178,2]
[365461938,1749683434807,-250.0,0.00019178,2]
[365461939,1749683434818,-480.0,0.00019178,2]
[365461940,1749683434831,-785.54,0.00019178,2]
[365461941,1749683434840,-480.0,0.00019178,2]
[365461942,1749683434849,-490.0,0.00019178,2]
[365461943,1749683434860,-480.0,0.00019178,2]
[365461944,1749683434869,-602.22419128,0.00019178,2]
[365461945,1749683434879,-490.0,0.00019178,2]
[365461946,1749683434888,-480.0,0.00019178,2]
[365461947,1749683434897,-490.0,0.00019178,2]
[365461948,1749683434906,-490.0,0.00019178,2]
[365461949,1749683434915,-480.0,0.00019178,2]
[365461950,1749683434924,-480.0,0.00019178,2]
[365461951,1749683434934,-490.0,0.00019178,2]
[365461952,1749683434943,-490.0,0.00019178,2]
[365461953,1749683434952,-539.13311619,0.00019178,2]
[365461954,1749683434961,-490.0,0.00019178,2]
[365461955,1749683434970,-480.0,0.00019178,2]
[365461956,1749683434979,-414.21268846,0.00019178,2]
[365461957,1749683434990,-480.0,0.00019178,2]
[365461958,1749683434999,-480.0,0.00019178,2]
[365461959,1749683435008,-480.0,0.00019178,2]
[365461960,1749683435018,-490.0,0.00019178,2]
[365461961,1749683435027,-490.0,0.00019178,2]
[365461962,1749683435037,-480.0,0.00019178,2]
[365461963,1749683435046,-490.0,0.00019178,2]
[365461964,1749683435056,-480.0,0.00019178,2]
[365461965,1749683435065,-480.0,0.00019178,2]
[365461966,1749683435075,-490.0,0.00019178,2]
[365461967,1749683435084,-480.0,0.00019178,2]
[365461968,1749683435093,-450.0,0.00019178,2]
[365461969,1749683435102,-490.0,0.00019178,2]
[365461970,1749683435112,-490.0,0.00019178,2]
[365461971,1749683435121,-480.0,0.00019178,2]
[365461972,1749683435130,-819.62,0.00019178,2]
[365461973,1749683435139,-480.0,0.00019178,2]
[365461974,1749683435148,-480.0,0.00019178,2]
[365461975,1749683435156,-544.48,0.00019178,2]
[365461976,1749683435166,-480.0,0.00019178,2]
[365461977,1749683435175,-480.0,0.00019178,2]
[365461978,1749683435184,-490.0,0.00019178,2]
[365461979,1749683435193,-480.0,0.00019178,2]
[365461980,1749683435202,-480.0,0.00019178,2]
[365461981,1749683435211,-490.0,0.00019178,2]
[365461982,1749683435220,-490.0,0.00019178,2]
[365461983,1749683435230,-480.0,0.00019178,2]
[365461984,1749683435239,-490.0,0.00019178,2]
[365461985,1749683435248,-480.0,0.00019178,2]
[365461986,1749683435258,-480.0,0.00019178,2]
[365461987,1749683435267,-480.0,0.00019178,2]
[365461988,1749683435276,-490.0,0.00019178,2]
[365461989,1749683435285,-480.0,0.00019178,2]
[365461990,1749683435295,-349.21703178,0.00019178,2]
[365461991,1749683435304,-490.0,0.00019178,2]
[365461992,1749683435313,-430.94188887,0.00019178,2]
[365461993,1749683435322,-480.0,0.00019178,2]
[365461994,1749683435331,-490.0,0.00019178,2]
[365461995,1749683435341,-490.0,0.00019178,2]
[365461996,1749683435351,-480.0,0.00019178,2]
[365461997,1749683435360,-562.14,0.00019178,2]
[365461998,1749683435370,-490.0,0.00019178,2]
[365461999,1749683435379,-490.0,0.00019178,2]
[365462000,1749683435388,-480.0,0.00019178,2]
[365462001,1749683435397,-963.97,0.00019178,2]
[365462002,1749683435406,-490.0,0.00019178,2]
[365462003,1749683435416,-490.0,0.00019178,2]
[365462004,1749683435427,-490.0,0.00019178,2]
[365462005,1749683435435,-480.0,0.00019178,2]
[365462006,1749683435445,-427.05334196,0.00019178,2]
[365462007,1749683435455,-480.0,0.00019178,2]
[365462008,1749683435464,-484.51,0.00019178,2]
[365462009,1749683435473,-480.0,0.00019178,2]
[365462010,1749683435482,-480.0,0.00019178,2]
[365462011,1749683435491,-480.0,0.00019178,2]
[365462012,1749683435501,-480.0,0.00019178,2]
[365462013,1749683435510,-584.12,0.00019178,2]
[365462014,1749683435519,-490.0,0.00019178,2]
[365462015,1749683435528,-453.59766958,0.00019178,2]
[365462016,1749683435538,-480.0,0.00019178,2]
[365462017,1749683435547,-480.0,0.00019178,2]
[365462018,1749683435556,-490.0,0.00019178,2]
[365462019,1749683435565,-490.0,0.00019178,2]
[365462020,1749683435574,-480.0,0.00019178,2]
[365462021,1749683435584,-490.0,0.00019178,2]
[365462022,1749683435593,-771.9,0.00019178,2]
[365462023,1749683435603,-480.0,0.00019178,2]
[365462024,1749683435616,-490.0,0.00019178,2]
[365462025,1749683435626,-480.0,0.00019178,2]
[365462026,1749683435635,-490.0,0.00019178,2]
[365462027,1749683435645,-534.01937949,0.00019178,2]